bitfinex-derivatives/quotes_ETHF0:USTF0_20260214
["timestamp","ask_amount","ask_price","bid_price","bid_amount"]
[1771076843966,0.5514706,2073.7,2072.8,0.54161115]
[1771076844967,0.5514706,2073.7,2072.8,0.54721976]
[1771076848566,13.8174706,2073.7,2072.8,0.54721976]
[1771076848767,0.5649741,2073.6,2072.8,0.54721976]
[1771076854474,0.5649741,2073.6,2073.0,0.57356544]
[1771076854674,13.266,2073.7,2073.0,0.57356544]
[1771076855969,13.266,2073.7,2073.2,0.57356544]
[1771076857170,0.57414891,2074.0,2073.2,0.57356544]
[1771076861369,0.57414891,2074.0,2073.4,0.54357087]
[1771076863271,0.00425126,2074.1,2073.4,0.54357087]
[1771076863575,0.57560904,2074.1,2073.4,0.54357087]
[1771076864372,0.00425126,2074.1,2073.4,0.54357087]
[1771076866674,0.00425126,2074.1,2073.6,0.54357087]
[1771076870479,0.00425126,2074.1,2073.7,0.24122]
[1771076870671,0.00425126,2074.1,2073.8,0.54357087]
[1771076870868,60.745,2074.3,2073.8,0.54357087]
[1771076871067,0.55261722,2074.7,2073.9,0.2412]
[1771076871268,0.55261722,2074.7,2074.0,0.54357087]
[1771076871879,0.55650809,2074.7,2074.0,0.54357087]
[1771076872071,40.8,2074.6,2074.0,0.54357087]
[1771076872980,0.55650809,2074.7,2074.0,0.54357087]
[1771076873481,41.35650809,2074.7,2074.0,0.54357087]
[1771076873881,40.80389087,2074.7,2074.0,0.54357087]
[1771076874482,0.55194783,2075.0,2074.2,0.54357087]
[1771076874981,40.8,2074.9,2074.2,0.54357087]
[1771076875178,0.55194783,2074.8,2074.2,0.54357087]
[1771076875484,0.55570613,2074.8,2074.2,0.54357087]
[1771076875882,0.0037583,2074.8,2074.2,0.54357087]
[1771076880981,0.53881077,2074.7,2074.2,0.54357087]
[1771076881380,0.0037583,2074.8,2074.2,0.54357087]
[1771076881686,0.54182057,2075.4,2074.4,0.54776614]
[1771076881885,1.26617261,2075.5,2074.6,0.54776614]
[1771076881886,0.54182057,2075.2,2074.6,0.54776614]
[1771076882084,41.33846346,2075.1,2074.6,0.54776614]
[1771076882581,41.33846346,2075.1,2074.6,0.55249115]
[1771076882884,0.54281068,2075.1,2074.6,0.55249115]
[1771076883187,41.34281068,2075.1,2074.6,0.55249115]
[1771076885388,0.52915233,2074.7,2073.6,0.54776614]
[1771076885582,0.52915233,2074.5,2073.6,0.54776614]
[1771076885888,0.52915233,2074.3,2073.6,0.54776614]
[1771076886283,0.52915233,2074.3,2073.6,0.55304059]
[1771076888379,13.01281727,2074.5,2073.7,0.54776614]
[1771076888579,0.51481727,2074.4,2073.7,0.54776614]
[1771076888983,0.51481727,2074.4,2073.9,0.54776614]
[1771076889492,1.78098988,2074.8,2073.9,0.54776614]
[1771076889790,0.51481727,2074.7,2073.9,0.54776614]
[1771076893186,0.47365986,2074.5,2073.9,0.54776614]
[1771076899201,0.47445474,2074.3,2073.9,0.54776614]
[1771076899397,0.47445474,2074.3,2073.8,0.78897614]
[1771076899796,0.47445474,2074.3,2073.9,0.54776614]
[1771076903310,0.45152804,2074.5,2073.9,0.54776614]
[1771076905811,0.45225493,2074.6,2074.1,0.54776614]
[1771076906006,9.38825493,2074.8,2074.1,0.54776614]
[1771076909712,0.45418415,2074.7,2074.1,0.54776614]
[1771076910314,0.45268099,2074.7,2074.1,0.54776614]
[1771076910510,0.45268099,2074.5,2074.0,0.24118]
[1771076911010,0.45268099,2074.5,2074.0,0.78894614]
[1771076911315,0.45268099,2074.5,2073.7,0.53519597]
[1771076912814,0.45207136,2074.7,2073.8,0.53519597]
[1771076914515,0.45207136,2074.7,2073.9,0.2412]
[1771076914711,0.45207136,2074.7,2074.0,0.53519597]
[1771076915617,0.45286242,2074.8,2074.0,0.53519597]
[1771076922417,0.45692288,2075.0,2074.2,0.54409837]
[1771076923611,0.45692288,2075.6,2075.0,0.54409837]
[1771076923815,0.4612701,2075.5,2075.0,0.54409837]
[1771076924017,0.45692288,2075.5,2075.0,0.54409837]
[1771076924217,0.4612701,2075.5,2075.0,0.54409837]
[1771076924515,0.45924406,2075.7,2075.0,0.54409837]
[1771076924722,0.00509269,2075.5,2075.0,0.54409837]
[1771076925323,0.45924406,2076.4,2075.4,0.54409837]
[1771076925620,0.45924406,2076.4,2074.8,1.26617261]
[1771076925621,0.45924406,2076.0,2075.0,0.54409837]
[1771076925822,0.45924406,2075.8,2075.0,0.54409837]
[1771076926318,0.00343434,2075.8,2075.0,0.5475797]
[1771076926622,0.46844448,2075.8,2075.0,0.5475797]
[1771076926826,0.46501014,2075.7,2075.0,0.5475797]
[1771076927226,1.31884954,2075.6,2075.0,0.5475797]
[1771076927427,0.46501014,2075.6,2075.0,0.5475797]
[1771076927723,0.00343434,2075.8,2075.0,0.5475797]
[1771076928026,0.46844448,2075.8,2075.0,0.5475797]
[1771076928924,0.47597868,2075.8,2075.0,0.5475797]
[1771076929226,0.47254434,2075.6,2075.0,0.5475797]
[1771076929725,0.47597868,2075.8,2075.0,0.5475797]
[1771076930119,0.47254434,2075.7,2075.0,0.5475797]
[1771076930523,0.51531077,2076.4,2075.6,0.54409837]
[1771076930823,0.51531077,2076.2,2075.6,0.54409837]
[1771076931023,0.51531077,2076.0,2075.5,0.24101]
[1771076931227,0.51531077,2076.0,2075.5,0.78510837]
[1771076931526,0.51531077,2075.9,2075.5,0.78510837]
[1771076931925,0.51531077,2075.6,2075.3,0.54409837]
[1771076932326,0.54583426,2075.9,2075.3,0.54409837]
[1771076932528,0.54583426,2075.8,2075.3,0.54409837]
[1771076932926,0.54583426,2075.7,2075.3,0.54409837]
[1771076933830,0.54583426,2075.9,2075.3,0.54409837]
[1771076934029,0.54583426,2075.8,2075.3,0.54409837]
[1771076934529,1.39967366,2075.8,2075.3,0.54409837]
[1771076935324,0.55071149,2075.6,2075.3,0.54409837]
[1771076935524,0.55071149,2075.6,2075.2,0.54409837]
[1771076936326,0.55074129,2075.9,2075.2,0.54409837]
[1771076936527,0.55074129,2075.8,2075.2,0.54409837]
[1771076937025,0.55074129,2075.7,2075.2,0.54409837]
[1771076937330,0.55074129,2075.7,2075.0,0.5475797]
[1771076937532,0.55074129,2075.5,2075.0,0.5475797]
[1771076938028,0.55074129,2075.6,2075.0,0.5475797]
[1771076938428,0.8538394,2075.6,2075.0,0.5475797]
[1771076938730,0.55994048,2075.7,2075.0,0.5475797]
[1771076939034,0.55994048,2075.9,2075.0,0.5475797]
[1771076939229,0.55994048,2075.9,2075.2,0.54409837]
[1771076939426,1.41377988,2075.9,2075.2,0.54409837]
[1771076939623,0.55994048,2075.9,2075.2,0.54409837]
[1771076940029,0.64378873,2076.8,2075.9,0.54409837]
[1771076940228,0.55994048,2076.8,2075.9,0.54409837]
[1771076940530,0.55994048,2076.6,2075.8,0.24097]
[1771076941034,0.56531856,2076.6,2075.8,0.24097]
[1771076941232,0.51531856,2076.6,2075.8,0.80953938]
[1771076942328,0.51531856,2076.6,2075.9,0.56856938]
[1771076943429,0.51531856,2076.6,2075.0,0.00348133]
[1771076943430,0.51531856,2076.6,2075.3,0.56856938]
[1771076944031,0.51531856,2076.6,2075.5,0.56856938]
[1771076945334,0.58154639,2076.5,2075.5,0.56856938]
[1771076946027,0.58154639,2076.3,2075.5,0.56856938]
[1771076951639,0.58154639,2076.1,2075.5,0.56856938]
[1771076951939,0.58154639,2076.1,2075.3,0.56856938]
[1771076952142,0.58154639,2076.1,2075.1,0.56856938]
[1771076953841,40.8,2076.2,2075.0,0.00348133]
[1771076953842,0.58154639,2075.9,2075.0,0.57205071]
[1771076954046,0.58154639,2075.7,2075.0,0.57205071]
[1771076957041,41.38154639,2075.6,2075.0,0.57205071]
[1771076957235,0.58154639,2076.1,2075.0,0.57205071]
[1771076957444,0.58154639,2075.9,2075.0,0.57205071]
[1771076957954,0.58154639,2075.7,2075.0,0.57205071]
[1771076958447,0.58154639,2075.7,2075.0,0.00348133]
[1771076958743,0.58154639,2075.7,2074.8,0.56856938]
[1771076958953,0.58154639,2075.5,2074.4,0.56856938]
[1771076959246,0.58154639,2075.3,2074.4,0.56856938]
[1771076959939,0.58154639,2075.3,2074.4,0.57384898]
[1771076961545,0.58154639,2075.3,2074.6,0.56856938]
[1771076961942,19.998,2075.4,2074.6,0.56856938]
[1771076962247,0.58154639,2075.4,2074.8,0.56856938]
[1771076962445,0.58154639,2075.6,2074.8,0.56856938]
[1771076962942,0.58154639,2075.6,2075.0,0.56856938]
[1771076963143,20.57854639,2075.7,2075.0,0.56856938]
[1771076964147,0.58154639,2075.6,2075.0,0.56856938]
[1771076964638,0.58154639,2075.6,2074.9,0.24108]
[1771076965248,0.58154639,2075.6,2074.9,0.80964938]
[1771076965546,0.58154639,2075.6,2074.9,0.56856938]
[1771076966345,0.58154639,2075.6,2074.7,0.56856938]
[1771076974752,0.58154639,2075.6,2074.5,0.54559477]
[1771076977550,0.58154639,2075.6,2074.7,0.54559477]
[1771076978952,20.58357046,2075.7,2074.9,0.54559477]
[1771076979158,0.58657046,2075.6,2074.9,0.54559477]
[1771076979356,0.58657046,2075.6,2074.5,0.54559477]
[1771076980461,0.58657046,2075.4,2074.5,0.54559477]
[1771076981558,0.58657046,2075.4,2074.7,0.53867968]
[1771076982566,20.002,2075.7,2074.7,0.53867968]
[1771076982767,0.5808108,2075.5,2074.7,0.53867968]
[1771076984471,0.5808108,2075.5,2074.6,0.24111]
[1771076984672,20.002,2075.7,2073.8,16.55824266]
[1771076984673,0.5808108,2075.3,2074.1,0.53867968]
[1771076984971,0.5808108,2075.0,2073.9,0.53867968]
[1771076985171,0.5808108,2074.8,2073.5,0.53867968]
[1771076985366,0.5808108,2074.6,2073.5,0.53867968]
[1771076985563,0.58679799,2074.6,2073.5,0.54410604]
[1771076985965,0.5808108,2074.4,2073.5,0.54410604]
[1771076986167,0.5808108,2074.2,2073.5,0.54410604]
[1771076989770,20.5858108,2074.4,2073.5,0.54410604]
[1771076990779,0.58679799,2074.6,2073.5,0.54410604]
[1771076993073,0.00598719,2074.6,2073.7,0.53867968]
[1771076993270,0.5808108,2074.5,2073.5,0.54410604]
[1771076993472,0.5808108,2074.5,2073.5,0.00542636]
[1771076993677,0.5808108,2074.3,2073.5,0.00542636]
[1771076993877,0.5808108,2074.1,2073.5,0.00542636]
[1771076995177,0.5808108,2074.1,2073.5,0.54410604]
[1771076995376,12.153,2074.2,2073.5,0.54410604]
[1771076995572,12.7338108,2074.2,2073.5,0.54410604]
[1771076995774,0.5808108,2074.3,2073.5,0.54410604]
[1771077001177,41.34410516,2074.4,2073.5,0.54410604]
[1771077001482,0.54410516,2074.3,2073.5,0.54410604]
[1771077004380,40.8,2074.4,2073.7,0.54183024]
[1771077004687,0.00598719,2074.6,2073.9,0.54183024]
[1771077005386,0.00598719,2074.6,2074.1,0.54183024]
[1771077005681,30.198,2075.0,2073.5,0.00542636]
[1771077005682,20.012,2075.0,2074.3,0.54183024]
[1771077005876,0.54410516,2075.1,2074.3,0.54183024]
[1771077006377,40.8,2075.3,2074.6,0.24111]
[1771077006582,40.80556258,2075.3,2074.7,0.54183024]
[1771077007381,0.00556258,2075.3,2074.7,0.54183024]
[1771077008776,40.8,2075.5,2074.9,0.54183024]
[1771077008977,0.54410516,2075.8,2075.1,0.54183024]
[1771077009484,0.54410516,2075.8,2075.0,0.24107]
[1771077009787,0.54410516,2075.6,2075.0,0.00376417]
[1771077009989,0.54410516,2075.4,2074.4,0.54183024]
[1771077010583,0.54410516,2075.4,2074.3,0.78297024]
[1771077010983,0.54410516,2075.4,2074.3,0.78827874]
[1771077011385,0.54410516,2074.8,2073.0,0.54183024]
[1771077011585,0.54410516,2074.6,2073.3,0.54183024]
[1771077012282,0.54410516,2074.6,2073.3,0.5456237]
[1771077014885,20.009,2074.7,2073.3,0.5456237]
[1771077014886,0.54410516,2074.4,2073.3,0.5456237]
[1771077015091,40.8,2074.3,2073.5,0.54183024]
[1771077015292,0.54410516,2074.2,2073.5,0.54183024]
[1771077015492,40.80598511,2074.3,2073.5,0.54183024]
[1771077016193,41.35009027,2074.3,2073.5,0.54183024]
[1771077016594,0.00598511,2074.3,2073.7,0.54183024]
[1771077019598,0.00598511,2074.3,2073.9,0.54183024]
[1771077023696,0.54410516,2074.6,2073.9,0.54183024]
[1771077024502,40.8,2074.7,2073.9,0.54183024]
[1771077024703,40.80532477,2074.7,2074.1,0.54183024]
[1771077024903,40.80532477,2074.7,2073.3,9.94086346]
[1771077024904,41.34942993,2074.7,2074.3,0.54183024]
[1771077025104,0.00532477,2074.7,2074.3,0.54183024]
[1771077026206,0.54410516,2075.0,2074.3,0.54183024]
[1771077026905,40.8,2075.2,2074.3,0.54183024]
[1771077026906,0.54410516,2075.1,2074.3,0.54183024]
[1771077027405,0.54830361,2075.1,2074.3,0.54183024]
[1771077028505,0.54410516,2075.4,2074.5,0.54183024]
[1771077029503,0.54410516,2075.2,2074.5,0.54183024]
[1771077037809,0.54410516,2075.2,2074.4,0.24114]
[1771077038009,0.53174771,2075.0,2073.9,0.78290611]
[1771077038311,0.53174771,2075.0,2074.0,0.54171611]
[1771077038506,0.53174771,2074.8,2074.0,0.54171611]
[1771077044022,0.54916653,2074.6,2074.0,0.54171611]
[1771077046229,20.55616653,2075.1,2074.4,0.58374225]
[1771077046528,0.54916653,2075.3,2074.6,0.58374225]
[1771077046724,41.34916653,2075.2,2074.6,0.58374225]
[1771077047327,0.54916653,2075.2,2074.6,0.58374225]
[1771077049222,40.8,2075.3,2074.6,0.58374225]
[1771077049429,0.55507873,2075.4,2075.0,0.58374225]
[1771077049430,2.2e-06,2075.4,2075.0,0.58374225]
[1771077049624,0.54916653,2075.7,2075.0,0.58374225]
[1771077050522,0.54916653,2075.7,2073.6,12.55824266]
[1771077050523,0.54916653,2075.7,2074.3,0.24114]
[1771077050826,0.54916653,2075.5,2074.3,0.82898725]
[1771077051025,0.54916653,2075.3,2074.3,0.82898725]
[1771077051427,0.54916653,2075.3,2074.3,0.004105]
[1771077054231,0.54916653,2075.1,2074.3,0.004105]
[1771077054524,0.24721807,2075.7,2074.3,0.004105]
[1771077054525,0.54916653,2075.5,2074.3,0.58784725]
[1771077054730,0.54916653,2075.3,2074.3,0.58784725]
[1771077054930,0.54916653,2075.3,2074.5,0.58374225]
[1771077056629,0.54916653,2075.3,2074.4,0.24114]
[1771077056837,0.54916653,2075.3,2074.3,0.004105]
[1771077057129,0.54916653,2075.3,2074.3,0.58784725]
[1771077057335,0.54916653,2075.1,2074.3,0.004105]
[1771077062333,0.53346889,2074.9,2073.3,0.54178689]
[1771077062636,0.53346889,2074.5,2072.9,0.54178689]
[1771077062836,0.53346889,2074.3,2073.3,0.54178689]
[1771077063239,0.53346889,2074.3,2073.3,0.546359]
[1771077064932,41.33346889,2074.4,2073.5,0.54178689]
[1771077065128,0.53346889,2074.3,2073.5,0.54178689]
[1771077068730,0.53346889,2074.3,2073.3,0.546359]
[1771077070133,0.53346889,2074.3,2073.3,0.00457211]
[1771077070439,0.53346889,2074.3,2073.3,0.546359]
[1771077072740,40.8,2074.4,2073.6,0.54178689]
[1771077073039,0.53346889,2074.5,2073.6,0.54178689]
[1771077073535,0.53346889,2074.3,2072.9,0.24131]
[1771077073739,0.53346889,2074.3,2072.8,0.54178689]
[1771077074140,0.53346889,2074.1,2072.8,0.54178689]
[1771077074339,0.53346889,2073.9,2072.8,0.54178689]
[1771077074543,0.53888146,2073.9,2072.8,0.54666075]
[1771077076539,0.53888146,2073.9,2072.8,0.00487386]
[1771077078140,0.53888146,2073.9,2072.8,0.54666075]
[1771077078339,0.53346889,2073.7,2072.8,0.54666075]
[1771077078946,41.33346889,2073.6,2072.8,0.54666075]
[1771077081440,0.53346889,2073.5,2072.8,0.54666075]
[1771077084954,0.53346889,2073.5,2072.8,0.00487386]
[1771077086958,0.53346889,2073.5,2072.8,0.54666075]
[1771077087253,0.53346889,2073.5,2072.8,0.00487386]
[1771077089057,0.53346889,2073.5,2072.4,0.54178689]
[1771077090149,0.53346889,2073.5,2072.4,0.5464748]
[1771077090455,0.53346889,2073.4,2072.4,0.5464748]
[1771077091150,0.53346889,2073.4,2072.6,0.54178689]
[1771077091553,0.53346889,2073.4,2072.8,0.53896416]
[1771077092452,20.59055982,2073.5,2072.8,0.53896416]
[1771077092648,0.57155982,2073.4,2072.8,0.53896416]
[1771077093958,20.019,2073.5,2072.8,0.53896416]
[1771077095955,0.57155982,2073.7,2073.0,0.53896416]
[1771077096156,41.37155982,2073.8,2073.0,0.53896416]
[1771077098656,0.57155982,2073.7,2073.0,0.53896416]
[1771077101965,0.5717162,2073.5,2072.4,0.00468791]
[1771077102165,0.5717162,2073.3,2072.4,0.00468791]
[1771077102360,0.5717162,2073.1,2072.1,0.54758862]
[1771077103162,0.5717162,2073.1,2071.8,0.54758862]
[1771077103361,0.5717162,2073.1,2071.8,0.5535534]
[1771077104165,0.5717162,2072.9,2071.8,0.5535534]
[1771077105067,0.24122,2073.7,2071.8,0.5535534]
[1771077105068,0.5717162,2072.7,2071.8,0.5535534]
[1771077105660,0.5717162,2072.5,2071.8,0.5535534]
[1771077107067,41.3717162,2072.6,2071.8,0.5535534]
[1771077107268,6.687,2072.8,2072.0,0.54758862]
[1771077107469,0.5717162,2072.7,2072.0,0.54758862]
[1771077107963,0.5717162,2072.7,2071.8,0.00596478]
[1771077107964,0.5717162,2072.4,2071.0,0.54758862]
[1771077108164,0.5717162,2072.4,2070.2,5.94407]
[1771077108165,0.5717162,2072.4,2071.2,0.54758862]
[1771077108958,0.5717162,2072.3,2071.4,0.54758862]
[1771077110472,0.5717162,2072.3,2071.2,0.55368474]
[1771077110865,0.5717162,2072.3,2071.2,0.00609612]
[1771077112571,0.5717162,2072.3,2071.2,0.55368474]
[1771077113369,0.5717162,2072.1,2071.2,0.55368474]
[1771077116669,41.3717162,2072.2,2071.2,0.55368474]
[1771077117077,0.5717162,2072.1,2071.2,0.55368474]
[1771077118880,0.5717162,2072.3,2071.2,0.55368474]
[1771077119373,0.5717162,2072.2,2071.2,0.55368474]
[1771077120570,0.5717162,2072.2,2071.4,0.54758862]
[1771077120980,40.8,2072.3,2071.6,0.54758862]
[1771077121180,0.00591358,2072.4,2071.6,0.54758862]
[1771077121382,0.54410414,2072.4,2071.6,0.54758862]
[1771077122775,0.00591358,2072.4,2071.6,0.54758862]
[1771077122981,0.00591358,2072.4,2071.8,0.56494482]
[1771077124378,0.54410414,2072.4,2071.8,0.56494482]
[1771077128184,0.00591358,2072.4,2071.8,0.56494482]
[1771077128582,0.00591358,2072.4,2071.9,0.24143]
[1771077128786,0.00591358,2072.4,2072.0,0.56494482]
[1771077129986,0.54410414,2072.4,2072.0,0.56494482]
[1771077131290,0.00591358,2072.4,2072.0,0.56494482]
[1771077132294,41.33819056,2072.6,2072.0,0.56494482]
[1771077132295,40.8,2072.6,2072.0,0.56494482]
[1771077132495,0.53819056,2072.8,2072.0,0.56494482]
[1771077132995,0.53819056,2072.7,2072.0,0.56494482]
[1771077133297,0.54202731,2072.7,2072.0,0.56494482]
[1771077134900,0.00383675,2072.7,2072.2,0.56494482]
[1771077135502,0.53819056,2072.6,2071.6,0.56494482]
[1771077135698,0.53819056,2072.6,2071.4,0.56494482]
[1771077135897,40.8,2072.5,2071.4,0.56494482]
[1771077136093,0.53819056,2072.4,2071.4,0.56494482]
[1771077136299,0.53819056,2072.2,2071.4,0.56494482]
[1771077137605,0.53819056,2072.2,2071.5,0.56494482]
[1771077138105,20.023,2072.3,2071.5,0.56494482]
[1771077138306,0.53819056,2072.2,2071.5,0.56494482]
[1771077141604,0.53819056,2072.2,2071.3,0.56494482]
[1771077145308,0.53819056,2072.1,2071.3,0.56494482]
[1771077147415,0.53819056,2072.1,2071.1,0.56494482]
[1771077147611,0.53819056,2072.1,2071.2,0.57104094]
[1771077150009,0.53819056,2072.1,2071.2,0.00609612]
[1771077150214,0.53819056,2071.9,2071.2,0.00609612]
[1771077153516,0.53819056,2071.9,2071.2,0.55528304]
[1771077160210,16.833,2072.1,2071.2,0.55528304]
[1771077160211,0.57332351,2072.4,2071.2,0.55528304]
[1771077160420,0.57332351,2072.2,2071.3,0.54918692]
[1771077162418,0.55707338,2072.0,2071.3,0.54918692]
[1771077164220,0.55707338,2072.0,2071.2,0.53602972]
[1771077165320,0.55707338,2071.8,2071.2,0.53602972]
[1771077165525,0.55707338,2071.8,2071.2,0.00609612]
[1771077166622,0.55707338,2071.8,2071.2,0.53602972]
[1771077166825,0.55707338,2071.8,2071.2,0.00609612]
[1771077167528,0.55707338,2071.7,2070.9,0.5299336]
[1771077168426,0.55707338,2071.7,2070.9,0.53539766]
[1771077168823,0.55707338,2071.7,2070.9,0.00546406]
[1771077169024,0.55707338,2071.5,2070.9,0.00546406]
[1771077170525,0.55707338,2071.5,2070.7,0.5299336]
[1771077171129,0.55707338,2071.3,2070.3,0.5299336]
[1771077171530,0.55707338,2071.3,2070.3,0.53422146]
[1771077172628,0.55707338,2071.3,2070.3,0.00428786]
[1771077172830,0.55707338,2071.3,2070.3,0.53422146]
[1771077174333,0.55707338,2071.3,2070.4,0.2416]
[1771077174533,41.35707338,2071.2,2070.5,0.5299336]
[1771077174735,41.3619961,2071.2,2070.5,0.5299336]
[1771077177032,0.55707338,2071.1,2070.5,0.5299336]
[1771077181240,0.55707338,2071.1,2070.4,0.2416]
[1771077181542,0.55707338,2071.1,2070.4,0.77270208]
[1771077182143,0.55707338,2071.1,2070.4,0.2416]
[1771077183648,0.55707338,2071.1,2070.4,0.77270208]
[1771077184239,0.00492272,2071.2,2070.7,0.53110208]
[1771077184445,0.53858727,2071.2,2070.7,0.53110208]
[1771077185542,0.00492272,2071.2,2070.7,0.53110208]
[1771077185850,0.53366455,2071.4,2070.7,0.53110208]
[1771077186245,41.33366455,2071.4,2070.7,0.53110208]
[1771077186646,0.53366455,2071.3,2070.7,0.53110208]
[1771077186947,0.53818948,2071.3,2070.7,0.53110208]
[1771077190246,0.00452493,2071.3,2070.7,0.53110208]
[1771077190446,0.53818948,2071.3,2070.7,0.53110208]
[1771077191049,40.8,2071.4,2070.9,0.53110208]
[1771077191450,0.53366455,2071.6,2070.9,0.53110208]
[1771077191952,41.33366455,2071.6,2070.9,0.53110208]
[1771077192152,41.33919507,2071.6,2071.1,0.53110208]
[1771077192950,0.53366455,2071.5,2071.1,0.53110208]
[1771077195052,0.53366455,2071.5,2071.0,0.24153]
[1771077195253,0.53366455,2071.5,2071.0,0.77263208]
[1771077195454,0.53366455,2071.5,2071.1,0.53110208]
[1771077196350,41.33919507,2071.6,2071.1,0.53110208]
[1771077196653,0.53919507,2071.6,2071.1,0.53110208]
[1771077198151,0.53919507,2071.6,2071.0,0.24153]
[1771077198356,0.53919507,2071.6,2071.0,0.77263208]
[1771077198857,0.53919507,2071.6,2071.1,0.53110208]
[1771077200957,0.53919507,2071.6,2071.0,0.24153]
[1771077201158,0.53919507,2071.6,2071.0,0.77263208]
[1771077201563,0.53919507,2071.6,2071.1,0.53110208]
[1771077204765,0.53919507,2071.6,2071.0,0.24153]
[1771077204969,0.00428786,2070.2,2068.5,0.5835859]
[1771077205266,0.00428786,2069.6,2068.5,0.5835859]
[1771077205467,0.00428786,2069.4,2068.5,0.5835859]
[1771077205663,0.00428786,2069.2,2068.5,0.5835859]
[1771077205859,0.00859237,2069.2,2068.6,0.77368965]
[1771077206063,0.00428786,2069.1,2068.7,0.5835859]
[1771077206265,20.7815533,2069.0,2068.7,0.5835859]
[1771077206464,0.7555533,2068.9,2068.7,0.5835859]
[1771077206664,0.7555533,2068.8,2068.7,0.5835859]
[1771077207064,0.00975867,2068.8,2068.7,13.91952551]
[1771077207963,11.498,2069.2,2068.9,0.58646702]
[1771077208565,40.8,2069.7,2068.9,0.58646702]
[1771077208566,40.8,2069.7,2069.0,0.18034508]
[1771077208766,20.026,2069.6,2069.0,0.18034508]
[1771077208965,20.03019601,2069.6,2069.0,0.18034508]
[1771077209873,0.53366455,2069.5,2068.6,0.53110208]
[1771077210373,20.025,2069.4,2068.6,0.53110208]
[1771077210676,20.55866455,2069.4,2068.8,0.53110208]
[1771077210970,0.53786056,2069.6,2068.8,0.53110208]
[1771077211169,0.00419601,2069.6,2069.1,0.53110208]
[1771077211669,0.58038084,2069.6,2069.2,13.86213828]
[1771077211869,0.58038084,2069.6,2069.2,0.53050318]
[1771077212074,0.57618483,2070.1,2069.6,0.53050318]
[1771077212568,40.8,2070.0,2069.6,0.53050318]
[1771077212770,20.027,2070.1,2069.8,0.53050318]
[1771077213173,60.83181424,2070.1,2069.8,0.53050318]
[1771077213376,40.80481424,2070.1,2069.8,0.53050318]
[1771077213975,40.80481424,2070.1,2068.8,0.24178]
[1771077214273,0.00481424,2070.1,2069.4,0.24172]
[1771077214764,0.00481424,2070.1,2069.7,13.3316351]
[1771077215172,0.00481424,2070.1,2069.8,13.3316351]
[1771077215367,20.027,2070.5,2069.9,0.53050318]
[1771077215568,20.60955502,2070.5,2069.9,0.53050318]
[1771077215974,41.38255502,2070.4,2069.9,0.53050318]
[1771077216375,41.38255502,2070.4,2069.9,13.86213828]
[1771077216572,41.38813595,2070.4,2069.9,13.86213828]
[1771077217269,41.38813595,2070.4,2070.0,13.3316351]
[1771077217475,41.38813595,2070.4,2070.0,13.336766]
[1771077217676,40.80558093,2070.4,2070.1,13.3316351]
[1771077218279,0.58255502,2070.6,2070.1,13.3316351]
[1771077218482,0.58255502,2070.6,2070.0,0.0051309]
[1771077218882,41.38255502,2070.5,2070.0,0.0051309]
[1771077219179,41.38255502,2070.5,2070.1,13.3316351]
[1771077219479,0.00401973,2070.5,2070.0,0.0051309]
[1771077219672,0.00401973,2070.5,2070.1,13.3316351]
[1771077219880,0.00401973,2070.5,2070.0,0.0051309]
[1771077220282,0.00401973,2070.5,2070.2,13.3316351]
[1771077220678,0.54223917,2070.5,2070.3,13.3316351]
[1771077220882,0.54223917,2070.5,2070.0,0.0051309]
[1771077221282,0.54223917,2070.5,2070.2,13.3316351]
[1771077221680,0.54223917,2070.5,2070.3,13.3316351]
[1771077221984,0.54223917,2070.5,2070.0,0.0051309]
[1771077222179,0.54223917,2070.5,2070.2,13.3316351]
[1771077222680,0.00401973,2070.5,2070.3,13.3316351]
[1771077222886,0.53821944,2071.2,2070.1,0.24164]
[1771077223085,0.53821944,2071.0,2070.1,0.24164]
[1771077223274,41.33821944,2071.0,2070.1,0.24164]
[1771077223886,41.34334876,2071.0,2070.3,12.79341566]
[1771077224484,0.53821944,2070.9,2070.1,0.24164]
[1771077224882,0.53821944,2070.9,2070.2,12.79341566]
[1771077225082,0.53821944,2070.9,2070.1,0.24164]
[1771077225283,0.53821944,2070.9,2070.3,12.79341566]
[1771077225478,0.53821944,2070.9,2070.1,0.24164]
[1771077225886,0.53821944,2070.9,2070.2,12.79341566]
[1771077226287,0.53821944,2070.9,2070.3,12.79341566]
[1771077226586,0.53821944,2070.9,2070.1,0.24164]
[1771077226788,0.53821944,2070.9,2070.3,12.79341566]
[1771077227288,0.53821944,2070.9,2070.4,12.79341566]
[1771077227486,0.53821944,2070.9,2070.1,0.24164]
[1771077227786,0.53821944,2070.9,2070.3,12.79341566]
[1771077228180,0.53821944,2070.9,2070.1,0.24164]
[1771077228386,0.53821944,2070.9,2070.3,12.79341566]
[1771077228885,0.53821944,2070.9,2070.1,0.24164]
[1771077228886,0.53821944,2070.9,2070.4,12.79341566]
[1771077229086,0.53821944,2070.9,2070.1,0.24164]
[1771077229287,0.53821944,2070.9,2070.3,12.79341566]
[1771077229688,0.53821944,2070.9,2070.1,0.24164]
[1771077229887,0.53821944,2070.9,2070.3,12.79341566]
[1771077230389,0.53821944,2070.9,2070.4,12.79341566]
[1771077230589,0.53821944,2070.9,2070.1,0.24164]
[1771077231483,0.53821944,2070.9,2070.4,12.79341566]
[1771077231681,40.80512932,2071.0,2070.1,0.24164]
[1771077231886,41.34334876,2071.0,2070.4,12.79341566]
[1771077232186,40.80512932,2071.0,2070.5,0.24159]
[1771077232389,0.54334876,2071.0,2070.5,0.24159]
[1771077232895,0.54334876,2071.0,2070.7,12.79341566]
[1771077233088,0.54334876,2071.0,2070.5,0.24159]
[1771077238095,0.54334876,2071.0,2070.0,4.2517809]
[1771077240498,0.00512932,2071.0,2070.4,0.2416]
[1771077242404,0.54656682,2071.0,2070.4,0.2416]
[1771077243898,0.00512932,2071.0,2070.4,0.2416]
[1771077245614,0.53337793,2071.0,2070.4,0.2416]
[1771077245908,0.52824861,2070.8,2070.4,0.2416]
[1771077246413,0.5248685,2070.9,2070.4,0.2416]
[1771077246600,7.47692007,2070.8,2070.4,0.2416]
[1771077246799,0.5248685,2070.9,2070.4,0.2416]
[1771077247005,7.47691718,2070.8,2070.4,0.2416]
[1771077247209,0.5248685,2070.9,2070.4,0.2416]
[1771077247510,7.48853617,2070.8,2070.5,0.54038733]
[1771077247709,0.5248685,2070.9,2070.5,0.54038733]
[1771077247909,7.48849902,2070.8,2070.5,0.54038733]
[1771077248209,6.97948903,2070.7,2070.5,0.54038733]
[1771077248410,0.5248685,2070.9,2070.5,0.54038733]
[1771077250006,4.03523989,2071.0,2070.6,0.24158]
[1771077250211,0.00512932,2071.0,2070.7,0.54038733]
[1771077252111,4.03523989,2071.0,2070.7,0.54038733]
[1771077253609,4.5593893,2071.0,2070.6,0.78196733]
[1771077253809,0.52414941,2070.9,2070.6,0.78196733]
[1771077254608,0.00512932,2071.0,2070.7,0.54038733]
[1771077259317,0.00512932,2071.0,2070.4,0.54038733]
[1771077260217,7.44414198,2070.9,2070.4,0.54038733]